fUSD/lending_fUSD_20240626
["ID","MTS","AMOUNT","RATE_DAILY","PERIOD"]
[330433276,1719396653262,-158.09490461,0.00021929,2]
[330433277,1719396653271,-5257.42286416,0.00021929,2]
[330433278,1719396653281,-151.0,0.00021929,7]
[330433279,1719396653289,-285.900801,0.00021929,7]
[330433280,1719396653298,-1500.0,0.00021932,2]
[330433281,1719396653308,-150.0,0.00021933,2]
[330433282,1719396653317,-150.0,0.00021951,2]
[330433283,1719396653326,-1500.0,0.00021953,2]
[330433284,1719396653335,-150.0,0.00021955,2]
[330433285,1719396653346,-150.0,0.00021963,2]
[330433286,1719396653355,-1130.60662013,0.00021964,2]
[330433287,1719396653364,-150.0,0.00021972,2]
[330433288,1719396653374,-150.0,0.00021972,2]
[330433289,1719396653383,-150.0,0.00021973,2]
[330433290,1719396653392,-300.0,0.00021976,2]
[330433291,1719396653401,-1500.0,0.00021977,2]
[330433292,1719396653410,-599.681482,0.00021977,7]
[330433293,1719396653419,-599.681482,0.00021977,7]
[330433294,1719396653428,-1785.589286,0.00021989,7]
[330433295,1719396653437,-1785.589286,0.00021989,7]
[330433296,1719396653446,-2506.04597,0.00021989,7]
[330433297,1719396653455,-2506.04597,0.00021989,7]
[330433298,1719396653465,-210.32553,0.00021989,7]
[330433299,1719396653474,-210.32553,0.00021989,7]
[330433300,1719396653486,-150.0,0.0002199,2]
[330433301,1719396653497,-300.0,0.00021995,2]
[330433302,1719396653506,-276.77600181,0.00021997,2]
[330433303,1719396653515,-151.0,0.00021999,7]
[330433304,1719396653525,-151.0,0.00021999,7]
[330433305,1719396653535,-218.913988,0.00021999,7]
[330433306,1719396653544,-151.0,0.00021999,7]
[330433307,1719396653553,-151.0,0.00021999,7]
[330433308,1719396653562,-151.0,0.00021999,7]
[330433309,1719396653571,-151.0,0.00021999,7]
[330433310,1719396653581,-173.013579,0.00021999,7]
[330433311,1719396653593,-173.013579,0.00021999,7]
[330433312,1719396653602,-173.013579,0.00021999,7]
[330433313,1719396653612,-173.013579,0.00021999,7]
[330433314,1719396653621,-151.0,0.00021999,7]
[330433315,1719396653630,-151.0,0.00021999,7]
[330433316,1719396653639,-280.69776903,0.00021999,7]
[330433317,1719396653648,-294.0,0.00021999,7]
[330433318,1719396653657,-163.006609,0.00021999,7]
[330433319,1719396653668,-151.0,0.00021999,7]
[330433320,1719396653678,-151.0,0.00021999,7]
[330433321,1719396653687,-151.0,0.00021999,7]
[330433322,1719396653695,-236.196,0.00021999,7]
[330433323,1719396653705,-203.07802,0.00021999,7]
[330433324,1719396653714,-236.196,0.00021999,7]
[330433325,1719396653723,-151.0,0.00021999,7]
[330433326,1719396653732,-151.0,0.00021999,7]
[330433327,1719396653742,-151.0,0.00021999,7]
[330433328,1719396653751,-151.0,0.00021999,7]
[330433329,1719396653761,-151.0,0.00021999,7]
[330433330,1719396653771,-277.437034,0.00021999,7]
[330433331,1719396653781,-277.437034,0.00021999,7]
[330433332,1719396653790,-151.0,0.00021999,7]
[330433333,1719396653799,-236.947213,0.00021999,7]
[330433334,1719396653808,-406.637294,0.00021999,7]
[330433335,1719396653817,-151.0,0.00021999,7]
[330433336,1719396653827,-236.947213,0.00021999,7]
[330433337,1719396653835,-406.637294,0.00021999,7]
[330433338,1719396653847,-205.038512,0.00021999,7]
[330433339,1719396653856,-151.0,0.00021999,7]
[330433340,1719396653866,-205.038512,0.00021999,7]
[330433341,1719396653875,-187.92,0.00021999,7]
[330433342,1719396653885,-231.487067,0.00021999,7]
[330433343,1719396653899,-187.92,0.00021999,7]
[330433344,1719396653908,-231.487067,0.00021999,7]
[330433345,1719396653918,-165.319449,0.00021999,7]
[330433346,1719396653927,-151.0,0.00021999,7]
[330433347,1719396653938,-165.319449,0.00021999,7]
[330433348,1719396653947,-215.346535,0.00021999,7]
[330433349,1719396653957,-215.346535,0.00021999,7]
[330433350,1719396653970,-151.0,0.00021999,7]
[330433351,1719396653979,-151.0,0.00021999,7]
[330433352,1719396653988,-151.0,0.00021999,7]
[330433353,1719396653997,-151.0,0.00021999,7]
[330433354,1719396654201,-151.0,0.00021999,7]
[330433355,1719396654234,-584.03865,0.00021999,7]
[330433356,1719396654244,-584.03865,0.00021999,7]
[330433357,1719396654253,-440.140798,0.00021999,7]
[330433358,1719396654263,-151.0,0.00021999,7]
[330433359,1719396654272,-440.140798,0.00021999,7]
[330433360,1719396654282,-151.0,0.00021999,7]
[330433361,1719396654291,-151.0,0.00021999,7]
[330433362,1719396654301,-151.0,0.00021999,7]
[330433363,1719396654310,-504.376636,0.00021999,7]
[330433364,1719396654320,-504.376636,0.00021999,7]
[330433365,1719396654330,-151.0,0.00021999,7]
[330433366,1719396654340,-255.916376,0.00021999,7]
[330433367,1719396654351,-255.916376,0.00021999,7]
[330433368,1719396654360,-255.916376,0.00021999,7]
[330433369,1719396654369,-255.916376,0.00021999,7]
[330433370,1719396654381,-235.889473,0.00021999,7]
[330433371,1719396654391,-235.889473,0.00021999,7]
[330433372,1719396654400,-151.0,0.00021999,7]
[330433373,1719396654409,-151.0,0.00021999,7]
[330433374,1719396654418,-235.889473,0.00021999,7]
[330433375,1719396654428,-235.889473,0.00021999,7]
[330433376,1719396654438,-151.0,0.00021999,7]
[330433377,1719396654446,-151.0,0.00021999,7]
[330433378,1719396654456,-151.0,0.00021999,7]
[330433379,1719396654465,-287.557385,0.00021999,7]
[330433380,1719396654475,-151.0,0.00021999,7]
[330433381,1719396654484,-151.0,0.00021999,7]
[330433382,1719396654493,-211.778098,0.00021999,7]
[330433383,1719396654502,-211.778098,0.00021999,7]
[330433384,1719396654512,-151.0,0.00021999,7]
[330433385,1719396654521,-174.94979,0.00021999,7]
[330433386,1719396654530,-211.778098,0.00021999,7]
[330433387,1719396654539,-211.778098,0.00021999,7]
[330433388,1719396654548,-433.664823,0.00021999,7]
[330433389,1719396654558,-433.664823,0.00021999,7]
[330433390,1719396654568,-151.0,0.00021999,7]
[330433391,1719396654577,-151.0,0.00021999,7]
[330433392,1719396654586,-433.664823,0.00021999,7]
[330433393,1719396654599,-151.0,0.00021999,7]
[330433394,1719396654609,-215.02913,0.00021999,7]
[330433395,1719396654617,-1073.716606,0.00021999,7]
[330433396,1719396654626,-1073.716606,0.00021999,7]
[330433397,1719396654635,-1073.716606,0.00021999,7]
[330433398,1719396654644,-1073.716606,0.00021999,7]
[330433399,1719396654653,-433.664823,0.00021999,7]
[330433400,1719396654663,-151.0,0.00021999,7]
[330433401,1719396654672,-151.0,0.00021999,7]
[330433402,1719396654681,-151.0,0.00021999,7]
[330433403,1719396654690,-151.0,0.00021999,7]
[330433404,1719396654699,-599.681482,0.00021999,7]
[330433405,1719396654708,-599.681482,0.00021999,7]
[330433406,1719396654719,-276.56194,0.00021999,7]
[330433407,1719396654729,-276.56194,0.00021999,7]
[330433408,1719396654738,-276.56194,0.00021999,7]
[330433409,1719396654748,-276.56194,0.00021999,7]
[330433410,1719396654757,-475.118793,0.00021999,7]
[330433411,1719396654767,-475.118793,0.00021999,7]
[330433412,1719396654777,-475.118793,0.00021999,7]
[330433413,1719396654787,-475.118793,0.00021999,7]
[330433414,1719396654796,-151.0,0.00021999,7]
[330433415,1719396654806,-151.0,0.00021999,7]
[330433416,1719396654815,-151.0,0.00021999,7]
[330433417,1719396654825,-240.536231,0.00021999,7]
[330433418,1719396654835,-1785.589286,0.00021999,7]
[330433419,1719396654849,-1785.589286,0.00021999,7]
[330433420,1719396654858,-2506.04597,0.00021999,7]
[330433421,1719396654868,-2506.04597,0.00021999,7]
[330433422,1719396654877,-159.951172,0.00021999,7]
[330433423,1719396654889,-159.951172,0.00021999,7]
[330433424,1719396654900,-210.32553,0.00021999,7]
[330433425,1719396654910,-159.951172,0.00021999,7]
[330433426,1719396654919,-159.951172,0.00021999,7]
[330433427,1719396654928,-151.0,0.00021999,7]
[330433428,1719396654938,-151.0,0.00021999,7]
[330433429,1719396654947,-210.32553,0.00021999,7]
[330433430,1719396654957,-151.0,0.00021999,7]
[330433431,1719396654966,-151.0,0.00021999,7]
[330433432,1719396654980,-1227.46271,0.00021999,7]
[330433433,1719396654990,-1227.46271,0.00021999,7]
[330433434,1719396654999,-1227.46271,0.00021999,7]
[330433435,1719396655008,-1227.46271,0.00021999,7]
[330433436,1719396655018,-654.959905,0.00021999,7]
[330433437,1719396655027,-654.959905,0.00021999,7]
[330433438,1719396655037,-151.0,0.00021999,7]
[330433439,1719396655047,-151.0,0.00021999,7]
[330433440,1719396655056,-654.959905,0.00021999,7]
[330433441,1719396655065,-654.959905,0.00021999,7]
[330433442,1719396655075,-196.997103,0.00021999,7]
[330433443,1719396655084,-196.997103,0.00021999,7]
[330433444,1719396655095,-196.997103,0.00021999,7]
[330433445,1719396655104,-196.997103,0.00021999,7]
[330433446,1719396655113,-339.628778,0.00021999,7]
[330433447,1719396655121,-151.0,0.00021999,7]
[330433448,1719396655131,-339.628778,0.00021999,7]
[330433449,1719396655140,-151.0,0.00021999,7]
[330433450,1719396655149,-339.628778,0.00021999,7]
[330433451,1719396655159,-339.628778,0.00021999,7]
[330433452,1719396655168,-194.665379,0.00021999,7]
[330433453,1719396655178,-151.0,0.00021999,7]
[330433454,1719396655187,-151.0,0.00021999,7]
[330433455,1719396655197,-174.1375,0.00021999,7]
[330433456,1719396655207,-597.509391,0.00021999,7]
[330433457,1719396655217,-597.509391,0.00021999,7]
[330433458,1719396655227,-597.509391,0.00021999,7]
[330433459,1719396655236,-597.509391,0.00021999,7]
[330433460,1719396655246,-151.0,0.00021999,7]
[330433461,1719396655256,-151.0,0.00021999,7]
[330433462,1719396655275,-151.0,0.00021999,7]
[330433463,1719396655284,-151.0,0.00021999,7]
[330433464,1719396655294,-151.0,0.00021999,7]
[330433465,1719396655303,-151.0,0.00021999,7]
[330433466,1719396655312,-1367.15404,0.00021999,7]
[330433467,1719396655322,-1367.15404,0.00021999,7]
[330433468,1719396655331,-1367.15404,0.00021999,7]
[330433469,1719396655341,-1367.15404,0.00021999,7]
[330433470,1719396655350,-151.0,0.00021999,7]
[330433471,1719396655359,-151.0,0.00021999,7]
[330433472,1719396655369,-151.0,0.00021999,7]
[330433473,1719396655379,-263.479165,0.00021999,7]
[330433474,1719396655388,-151.0,0.00021999,7]
[330433475,1719396655397,-151.0,0.00021999,7]
[330433476,1719396655406,-151.0,0.00021999,7]
[330433477,1719396655416,-172.969592,0.00021999,7]
[330433478,1719396655425,-152.422703,0.00021999,7]
[330433479,1719396655434,-152.422703,0.00021999,7]
[330433480,1719396655443,-151.0,0.00021999,7]
[330433481,1719396655452,-188.401152,0.00021999,7]
[330433482,1719396655461,-152.422703,0.00021999,7]
[330433483,1719396655471,-152.422703,0.00021999,7]
[330433484,1719396655480,-167.002005,0.00021999,7]
[330433485,1719396655489,-167.002005,0.00021999,7]
[330433486,1719396655499,-167.002005,0.00021999,7]
[330433487,1719396655509,-167.002005,0.00021999,7]
[330433488,1719396655519,-151.0,0.00021999,7]
[330433489,1719396655528,-151.0,0.00021999,7]
[330433490,1719396655537,-151.827949,0.00021999,7]
[330433491,1719396655561,-151.827949,0.00021999,7]
[330433492,1719396655579,-151.827949,0.00021999,7]
[330433493,1719396655602,-151.827949,0.00021999,7]
[330433494,1719396655624,-151.0,0.00021999,7]
[330433495,1719396655642,-151.0,0.00021999,7]
[330433496,1719396655661,-151.0,0.00021999,7]
[330433497,1719396655678,-151.0,0.00021999,7]
[330433498,1719396655693,-10000.0,0.00021999,7]
[330433499,1719396655712,-10000.0,0.00021999,7]
[330433500,1719396655734,-253.06795732,0.00021999,2]
[330433501,1719396655748,-10000.0,0.00021999,7]
[330433502,1719396655764,-10000.0,0.00021999,7]
[330433503,1719396655781,-224846.26268343,0.00021999,2]
[330433504,1719396655800,-968.54872,0.00021999,7]
[330433505,1719396655813,-968.54872,0.00021999,7]
[330433506,1719396655829,-151.0,0.00021999,7]
[330433507,1719396655844,-151.0,0.00021999,7]
[330433508,1719396655860,-968.54872,0.00021999,7]
[330433509,1719396655886,-968.54872,0.00021999,7]
[330433510,1719396655907,-150.0,0.00021999,2]
[330433511,1719396655922,-150.0,0.00021999,7]
[330433512,1719396655939,-150.0,0.00021999,7]
[330433513,1719396655954,-150.0,0.00021999,7]
[330433514,1719396655971,-150.0,0.00021999,7]
[330433515,1719396655987,-150.0,0.00021999,7]
[330433516,1719396656003,-543.043496,0.00021999,7]
[330433517,1719396656018,-543.043496,0.00021999,7]
[330433518,1719396656035,-543.043496,0.00021999,7]
[330433519,1719396656051,-543.043496,0.00021999,7]
[330433520,1719396656066,-203.476551,0.00021999,7]
[330433521,1719396656082,-203.476551,0.00021999,7]
[330433522,1719396656098,-261.47671,0.00021999,7]
[330433523,1719396656114,-261.47671,0.00021999,7]
[330433524,1719396656130,-203.476551,0.00021999,7]
[330433525,1719396656146,-203.476551,0.00021999,7]
[330433526,1719396656162,-261.47671,0.00021999,7]
[330433527,1719396656178,-261.47671,0.00021999,7]
[330433528,1719396656193,-170.592103,0.00021999,7]
[330433529,1719396656208,-2443.258192,0.00021999,7]
[330433530,1719396656224,-2443.258192,0.00021999,7]
[330433531,1719396656239,-2443.258192,0.00021999,7]
[330433532,1719396656256,-2443.258192,0.00021999,7]
[330433533,1719396656271,-269042.81054909,0.00022,7]
[330433534,1719396656294,-1479.06618087,0.00022,7]
[330433535,1719396656313,-2142.33592766,0.00022,7]
[330433536,1719396656332,-959.39222354,0.00022,7]
[330433537,1719396656353,-940.29282136,0.00022,7]
[330433538,1719396656372,-14981.80930804,0.00022,7]
[330433539,1719396656388,-372271.21747924,0.00022,4]
[330433540,1719396656407,-15355.91252601,0.00022,4]
[330433541,1719396656425,-2875.82477649,0.00022,4]
[330433542,1719396656537,-2776.92075126,0.00022,4]
[330433543,1719396656556,-635.74,0.00022,4]
[330433544,1719396656575,-843.4,0.00022,4]
[330433545,1719396656595,-110798.12837452,0.00022,4]
[330433546,1719396656616,-3405.91380266,0.00022,4]
[330433547,1719396656635,-2310.06028183,0.00022,4]
[330433548,1719396658239,-445.94318268,0.00017456,2]
[330433549,1719396658250,-434.80706259,0.00017456,2]
[330433550,1719396658261,-1408.61955566,0.00017456,2]
[330433551,1719396658273,-1310.01098762,0.00017456,2]
[330433552,1719396658282,-193.75834478,0.00022,5]
[330433553,1719396658292,-396.2306656,0.00022,4]
[330433554,1719396658303,-274.733615,0.00022,4]
[330433555,1719396658352,-3972.09929284,0.00022,4]
[330433556,1719396658364,-282.28200028,0.00022,4]
[330433557,1719396658374,-547260.69636162,0.00022,4]
[330433558,1719396658385,-659.99999999,0.00022,4]
[330433559,1719396658396,-3268.21911306,0.00022,4]
[330433560,1719396658407,-18874.99312,0.00022,4]
[330433561,1719396658459,-1220.0,0.00022,4]
[330433562,1719396658470,-336.84091214,0.00022,4]
[330433563,1719396658481,-376.16154095,0.00022,4]
[330433564,1719396658492,-1650.31387522,0.00022,4]
[330433565,1719396658503,-433.70518186,0.00022,4]
[330433566,1719396658514,-6105.66359846,0.00022,4]
[330433567,1719396658526,-21503.45755552,0.00022,4]
[330433568,1719396658537,-6106.0,0.00022,4]
[330433569,1719396658547,-3303.0,0.00022,4]
[330433570,1719396658558,-49824.0,0.00022,4]
[330433571,1719396658569,-5514.34435092,0.00022,4]
[330433572,1719396659400,-673.58,0.00018085,2]
[330433573,1719396659411,-596.40169867,0.00018085,2]
[330433574,1719396659421,-615.05149561,0.00022,4]
[330433575,1719396659432,-6640.3,0.00022,4]
[330433576,1719396659443,-283.2823812,0.00022,4]
[330433577,1719396659455,-1273.13222792,0.00022,4]
[330433578,1719396659576,-335.30570427,0.00022,4]
[330433579,1719396659587,-2617.665,0.00022,4]
[330433580,1719396659600,-8410.91138845,0.00022,4]
[330433581,1719396659612,-382.51727014,0.00022,4]
[330433582,1719396659624,-46611.18841279,0.00022,4]
[330433583,1719396659636,-772.646875,0.00022,4]
[330433584,1719396659648,-677.57587675,0.00022,4]
[330433585,1719396659660,-553.22115253,0.00022,4]
[330433586,1719396659671,-1223.98,0.00022,4]
[330433587,1719396659798,-717.12394233,0.00022,4]
[330433588,1719396659809,-6189.6,0.00022,4]
[330433589,1719396659822,-506.0548444,0.00022,4]
[330433590,1719396659833,-28594.98689701,0.00022,4]
[330433591,1719396659845,-27656.18092019,0.00022,4]
[330433592,1719396659856,-924.6237,0.00022,4]
[330433593,1719396659867,-7148.8,0.00022,4]
[330433594,1719396659878,-602.34,0.00022,4]
[330433595,1719396659893,-6657.30092645,0.00022,4]
[330433596,1719396659904,-2743.572205,0.00022,4]
[330433597,1719396750653,232.0,0.0002199,30]
[330433598,1719396750818,374.0,0.0002199,30]
[330433599,1719396751085,374.0,0.0002198,30]
[330433600,1719396751575,374.0,0.0002197,30]
[330433601,1719396752123,374.0,0.0002199,30]
[330433602,1719396752670,374.0,0.0002198,30]
[330433603,1719396753237,374.0,0.0002197,30]
[330433604,1719396753857,374.0,0.0002199,30]
[330433605,1719396754397,374.0,0.0002198,30]
[330433606,1719396755069,374.0,0.0002199,30]
[330433607,1719396755525,381.0,0.0002198,30]
[330433608,1719396860612,-1012.87391772,0.00013859,2]
[330433609,1719396860643,-2876.0,0.00013898,2]
[330433610,1719396860673,-300.0,0.00013899,2]
[330433611,1719396860702,-10811.12608228,0.000139,2]
[330433612,1719396862528,-15000.0,0.000139,2]
[330433613,1719396870018,344.0,0.0002199,30]
[330433614,1719396871125,232.0,0.0002199,30]
[330433615,1719396871337,344.0,0.0002198,30]
[330433616,1719396871586,344.0,0.0002197,30]
[330433617,1719396871729,344.0,0.0002199,30]
[330433618,1719396872297,344.0,0.0002198,30]
[330433619,1719396872862,344.0,0.0002197,30]
[330433620,1719396873449,344.0,0.0002199,30]
[330433621,1719396874011,344.0,0.0002198,30]
[330433622,1719396874631,344.0,0.0002199,30]
[330433623,1719396875844,345.0,0.0002198,30]
[330433627,1719397592109,-1447.53438652,0.00013899,2]
[330433629,1719397833326,-307.58,0.00013899,2]
[330433630,1719397833340,-457.29170079,0.00013899,2]
[330433631,1719397833351,-663.59391269,0.00013899,2]
[330433632,1719397833362,-209.44758809,0.00013899,2]
[330433633,1719397833371,-539.99181243,0.000139,2]
[330433634,1719397833426,-1006.63320213,0.000139,2]
[330433656,1719397839307,-1901.39860316,0.000139,2]
[330433657,1719397839317,-155.41554942,0.00016248,2]
[330433658,1719397839327,-150.0,0.00017259,2]
[330433659,1719397839336,-408.0,0.0001847,2]
[330433660,1719397839346,-5789.33,0.0001847,2]
[330433661,1719397839357,-789.1265693,0.0001847,2]
[330433662,1719397839369,-313.6934307,0.0001847,2]
[330433663,1719397839379,-210.0,0.00018985,2]
[330433664,1719397839388,-499.99,0.00019233,2]
[330433665,1719397839398,-825.35,0.0002001,2]
[330433666,1719397839408,-1164.914,0.0002001,2]
[330433667,1719397839418,-1197.0,0.0002001,2]
[330433668,1719397839427,-8089.0525693,0.0002001,2]
[330433669,1719397839438,-1231.56157455,0.0002001,2]
[330433670,1719397839449,-16007.51285615,0.0002001,2]
[330433671,1719397839459,-250.0,0.00020148,2]
[330433672,1719397839469,-250.0,0.00020155,2]
[330433673,1719397839479,-190.92,0.00020159,2]
[330433674,1719397839489,-200.0,0.00020162,2]
[330433675,1719397839500,-1352.32,0.00020204,2]
[330433676,1719397839510,-345.81,0.00020212,2]
[330433677,1719397839520,-10741.69284561,0.00020231,2]
[330433678,1719397839532,-973.93476286,0.00020231,2]
[330433679,1719397839544,-4368.27239153,0.00020231,2]
[330433680,1719397839554,-250.0,0.00020267,2]
[330433681,1719397839563,-23900.0,0.00020291,2]
[330433682,1719397839573,-153.66,0.00020294,2]
[330433683,1719397839583,-1000.0,0.00020468,2]
[330433684,1719397839593,-1000.0,0.000205,2]
[330433685,1719397839602,-3755.5217,0.00020634,2]
[330433686,1719397839612,-212.1083,0.00020723,2]
[330433687,1719397839622,-408.0,0.00020734,2]
[330433688,1719397839632,-225.0,0.000208,2]
[330433689,1719397839641,-355.0,0.000208,2]
[330433690,1719397839651,-6565.28645647,0.000209,2]
[330433691,1719397839781,-633.56854353,0.000209,2]
[330433692,1719397839791,-162.8793685,0.00021,2]
[330433693,1719397839803,-296.256384,0.00021,2]
[330433695,1719397840526,-790.8642475,0.00021,2]
[330433696,1719397840536,-278.519032,0.00021321,2]
[330433697,1719397840547,-243.051444,0.00021321,2]
[330433698,1719397840560,-156.200212,0.00021321,2]
[330433699,1719397840570,-150.0,0.00021424,2]
[330433700,1719397840580,-150.0,0.00021424,2]
[330433701,1719397840590,-150.0,0.00021424,2]
[330433702,1719397840600,-277.33748622,0.00021559,2]
[330433703,1719397840609,-69.83335811,0.00021587,2]
[330433704,1719397840621,-173.21808589,0.00021587,2]
[330433705,1719397840631,-156.200212,0.00021587,2]
[330433706,1719397840641,-155.34,0.00021644,2]
[330433707,1719397840651,-39.22190203,0.00021644,2]
[330433708,1719397840817,-114.16809797,0.00021644,2]
[330433709,1719397840827,-230.45746632,0.0002168,2]
[330433710,1719397840838,-150.85464371,0.0002168,2]
[330433711,1719397840847,-1816.47278082,0.00021699,2]
[330433712,1719397840858,-55.26181019,0.00021699,2]
[330433713,1719397840868,-4788.79460871,0.00021699,2]
[330433714,1719397840877,-7500.0,0.000217,2]
[330433715,1719397840886,-1000.0,0.000217,2]
[330433716,1719397840896,-2500.0,0.000217,2]
[330433717,1719397840905,-168.51447913,0.00021708,2]
[330433718,1719397840915,-150.0,0.00021719,2]
[330433719,1719397840924,-150.0,0.0002172,2]
[330433720,1719397840934,-1871.73459093,0.00021721,2]
[330433721,1719397840943,-150.0,0.00021722,2]
[330433722,1719397840953,-150.0,0.00021723,2]
[330433723,1719397840962,-150.0,0.00021724,2]
[330433724,1719397840971,-150.0,0.00021726,2]
[330433725,1719397840981,-12749.19467156,0.00021743,3]
[330433726,1719397840990,-1871.73459093,0.00021744,2]
[330433727,1719397841001,-150.0,0.00021746,2]
[330433728,1719397841011,-150.0,0.00021749,2]
[330433729,1719397841020,-150.0,0.00021753,2]
[330433730,1719397841029,-150.0,0.00021755,2]
[330433731,1719397841038,-150.0,0.00021757,2]
[330433732,1719397841048,-150.0,0.00021759,2]
[330433733,1719397841057,-150.0,0.00021761,2]
[330433734,1719397841066,-150.0,0.00021763,2]
[330433735,1719397841076,-150.0,0.00021765,2]
[330433736,1719397841086,-1871.73459093,0.00021766,2]
[330433737,1719397841096,-150.0,0.00021767,2]
[330433738,1719397841105,-150.0,0.00021773,2]
[330433739,1719397841115,-150.0,0.00021776,2]
[330433740,1719397841124,-150.0,0.00021777,2]
[330433741,1719397841134,-150.0,0.00021779,2]
[330433742,1719397841144,-150.0,0.00021779,2]
[330433743,1719397841153,-1451.10293,0.0002178,2]
[330433744,1719397841162,-150.0,0.00021781,2]
[330433745,1719397841172,-150.0,0.00021784,2]
[330433746,1719397841182,-1871.73459093,0.00021788,2]
[330433747,1719397841192,-300.0,0.00021789,2]
[330433748,1719397841201,-150.0,0.0002179,2]
[330433749,1719397841210,-194701.44075441,0.0002179,3]
[330433750,1719397841221,-1611.00544294,0.0002179,3]
[330433751,1719397841232,-2654.72704819,0.0002179,3]
[330433752,1719397841243,-892.19844599,0.0002179,3]
[330433753,1719397841255,-14918.31365012,0.0002179,3]
[330433754,1719397841269,-1993.0536,0.0002179,3]
[330433762,1719397843499,-192.868,0.0002001,2]
[330433765,1719397843509,-150.0,0.00021728,2]
[330433767,1719397843518,-84.29088126,0.00021744,2]
[330433769,1719397843736,-65.70911874,0.00021744,2]
[330433770,1719397843746,-150.0,0.00021745,2]
[330433771,1719397843756,-150.0,0.00021776,2]
[330433772,1719397843766,-3585.89098126,0.0002179,3]
[330433773,1719397843777,-285.43780332,0.0002179,3]
[330433774,1719397843791,-614.85807599,0.0002179,3]
[330433775,1719397843802,-522.00656815,0.0002179,3]
[330433776,1719397843842,-657.52106772,0.0002179,3]
[330433777,1719397843853,-475.67259041,0.0002179,3]
[330433778,1719397843999,-4913.91976987,0.0002179,3]
[330433779,1719397844011,-6151.79860246,0.0002179,3]
[330433780,1719397844023,-613.4,0.0002179,3]
[330433781,1719397844035,-4363.77126417,0.0002179,3]
[330433782,1719397844045,-157.73,0.0002179,2]
[330433783,1719397844054,-150.0,0.00021792,2]
[330433784,1719397844064,-150.0,0.00021796,2]
[330433785,1719397844073,-150.0,0.00021799,2]
[330433786,1719397844083,-1501.16631926,0.000218,2]
[330433787,1719397844094,-1224.5387,0.000218,2]
[330433788,1719397844105,-1738.02113,0.000218,2]
[330433789,1719397844117,-754.3240493,0.000218,2]
[330433790,1719397844128,-7452.48,0.000218,2]
[330433814,1719397847389,-150.0,0.00021737,2]
[330433816,1719397847399,-150.0,0.0002178,2]
[330433817,1719397847408,-6026.09869675,0.000218,2]
[330433818,1719397847595,-2187.01020561,0.00021799,2]
[330433819,1719397847606,-776.31930374,0.00021799,2]
[330433820,1719397847618,-922.26269289,0.00021799,2]
[330433821,1719397847825,-2136.53960588,0.00021799,2]
[330433822,1719397847837,-1231.65854429,0.00021799,2]
[330433825,1719398071379,150.0,6.94e-05,2]
[330433826,1719398071402,7.38929812,6.94e-05,2]
[330433831,1719398166087,150.0,8.412e-05,2]
[330433832,1719398166109,5.0,8.412e-05,2]
[330433837,1719398217018,2795.22,8.412e-05,2]
[330433839,1719398393812,150.0,0.00010196,2]
[330433840,1719398393833,150.0,0.00010196,2]
[330433841,1719398393855,150.0,0.00010196,2]
[330433842,1719398393877,102.57239721,0.00010196,2]
[330433843,1719398404755,150.0,0.00010196,2]
[330433844,1719398404777,5.16688485,0.00010196,2]
[330433845,1719398458895,-2829.21023985,0.00011783,2]
[330433846,1719398458918,-24695.81662037,0.00011784,2]
[330433847,1719398462382,300.0,0.00011783,2]